[Event "DVM U12 2024"]
[Site "Heidelberg"]
[Date "2024.12.29"]
[Round "5"]
[White "Teng, David"]
[Black "Lange, Fynn Jeremy"]
[Result "1/2-1/2"]
[ECO "C54"]
[WhiteElo "1732"]
[BlackElo "1878"]
[Annotator "NA RC"]
[PlyCount "112"]
[EventDate "2024.12.23"]
[EventType "team-tourn"]
[EventRounds "7"]
[EventCountry "GER"]
[SourceTitle "playchess.com"]
[Source "ChessBase"]
[SourceQuality "1"]
[TimeControl "40/5400+30:1800+30"]

1. e4 {[%emt 0:00:10]} e5 {[%emt 0:00:10]} 2. Nf3 {[%emt 0:00:20]} Nc6 {[%emt 0:00:09]} 3. d4 {[%emt 0:00:44]} exd4 {[%emt 0:00:14]} 4. Bc4 {[%emt 0:00:35]} Bc5 {[%emt 0:00:26]} 5. c3 {[%emt 0:00:24]} Nf6 {[%emt 0:00:31]} 6. cxd4 {[%emt 0:00:57]} Bb4+ {[%emt 0:00:09]} 7. Bd2 {[%emt 0:00:30]} Bxd2+ {[%emt 0:00:57]} 8. Nbxd2 {[%emt 0:00:21]} d5 {[%emt 0:00:50]} 9. exd5 {[%emt 0:03:01]} Nxd5 {[%emt 0:00:11]} 10. O-O {[%emt 0:01:04]} O-O {[%emt 0:00:24]} 11. Ne4 {[%emt 0:00:50]} Bg4 {[%emt 0:00:48]} 12. Neg5 {[%emt 0:10:32]} h6 {[%emt 0:01:19]} 13. h3 {[%emt 0:01:54]} Bh5 {[%emt 0:02:59]} 14. Ne4 {[%emt 0:03:14]} Bxf3 {[%emt 0:05:47]} 15. Qxf3 {[%emt 0:00:51]} Nb6 {[%emt 0:00:48]} 16. Rac1 {[%emt 0:06:48]} Nxd4 {[%emt 0:03:45]} 17. Qe3 {[%emt 0:02:32]} Nxc4 {[%emt 0:08:06]} 18. Rxc4 {[%emt 0:01:20]} Ne6 {[%emt 0:00:31]} 19. Nc5 {[%emt 0:03:06]} Nxc5 {[%emt 0:14:32]} 20. Qxc5 {[%emt 0:01:26]} c6 {[%emt 0:06:06]} 21. Qb4 {[%emt 0:01:45]} Qc7 {[%emt 0:03:08]} 22. Qc3 {[%emt 0:02:19]} Rad8 {[%emt 0:02:34]} 23. Rg4 {[%emt 0:01:20]} f5 {[%emt 0:01:56]} 24. Rb4 {[%emt 0:00:57]} Kh7 {[%emt 0:03:16]} 25. Qb3 {[%emt 0:01:14]} b6 {[%emt 0:01:17]} 26. Qf3 {[%emt 0:02:31]} Rf6 {[%emt 0:01:42]} 27. Rc1 {[%emt 0:02:20]} Qe5 {[%emt 0:04:40]} 28. Rbc4 {[%emt 0:02:32]} c5 {[%emt 0:02:15]} 29. b3 {[%emt 0:00:59]} Rfd6 {[%emt 0:02:05]} 30. R4c3 {[%emt 0:01:41]} Qe4 {[%emt 0:07:44]} 31. Qxe4 {[%emt 0:08:08]} fxe4 {[%emt 0:00:11]} 32. Kh2 {[%emt 0:02:25]} Rd2 {[%emt 0:01:43]} 33. R1c2 {[%emt 0:00:17]} Rxc2 {[%emt 0:00:20]} 34. Rxc2 {[%emt 0:00:05]} Kg6 {[%emt 0:00:05]} 35. g4 {[%emt 0:01:29]} Kf6 {[%emt 0:01:46]} 36. Re2 {[%emt 0:00:30]} Ke5 {[%emt 0:00:47]} 37. f3 {[%emt 0:01:12]} Rd4 {[%emt 0:00:46]} 38. Kg3 {[%emt 0:01:22]} b5 {[%emt 0:01:25]} 39. h4 {[%emt 0:02:31]} c4 {[%emt 0:00:48]} 40. bxc4 {[%emt 0:00:18]} bxc4 {[%emt 0:00:07]} 41. g5 {[%emt 0:30:10]} hxg5 {[%emt 0:31:23]} 42. hxg5 {[%emt 0:00:06]} c3 {[%emt 0:00:20]} 43. Kg4 {[%emt 0:00:10]} Kd5 {[%emt 0:00:45]} 44. Kf4 {[%emt 0:03:23]} exf3+ {[%emt 0:12:23]} 45. Kxf3 {[%emt 0:00:21]} Kc4 {[%emt 0:03:59]} 46. Ke3 {[%emt 0:00:37]} Rg4 {[%emt 0:00:00]} 47. Rf2 {[%emt 0:00:00]} Rxg5 {[%emt 0:00:00]} 48. Rf4+ {[%emt 0:00:00]} Kd5 {[%emt 0:00:00]} 49. Kd3 {[%emt 0:00:00]} Rg3+ {[%emt 0:00:00]} 50. Kc2 {[%emt 0:00:00]} Kc6 {[%emt 0:00:00]} 51. Rb4 {[%emt 0:00:00]} g5 {[%emt 0:00:00]} 52. a4 {[%emt 0:00:00]} g4 {[%emt 0:00:00]} 53. a5 {[%emt 0:00:00]} Rg2+ {[%emt 0:00:00]} 54. Kxc3 {[%emt 0:00:00]} Ra2 {[%emt 0:00:00]} 55. Rxg4 {[%emt 0:00:00]} Rxa5 {[%emt 0:00:00]} 56. Rb4 {[%emt 0:00:00]} Rb5 {[%emt 0:00:00]} 1/2-1/2

[Event "DVM U12 2024"]
[Site "Heidelberg"]
[Date "2024.12.29"]
[Round "5"]
[White "Vlach, Ludwig"]
[Black "Rudolph, Simon"]
[Result "1/2-1/2"]
[ECO "B05"]
[WhiteElo "1709"]
[BlackElo "1614"]
[Annotator "NA"]
[PlyCount "76"]
[EventDate "2024.12.23"]
[EventType "team-tourn"]
[EventRounds "7"]
[EventCountry "GER"]
[SourceTitle "playchess.com"]
[Source "ChessBase"]
[SourceQuality "1"]
[TimeControl "40/5400+30:1800+30"]

1. e4 {[%emt 0:00:02]} Nf6 {[%emt 0:00:04]} 2. e5 {[%emt 0:00:05]} Nd5 {[%emt 0:00:04]} 3. d4 {[%emt 0:00:04]} d6 {[%emt 0:00:06]} 4. c4 {[%emt 0:00:05]} Nb6 {[%emt 0:00:06]} 5. Nf3 {[%emt 0:00:04]} Bg4 {[%emt 0:00:39]} 6. exd6 {[%emt 0:00:20]} exd6 {[%emt 0:00:32]} 7. Be2 {[%emt 0:00:13]} Be7 {[%emt 0:00:15]} 8. Nc3 {[%emt 0:00:09]} Nc6 {[%emt 0:00:24]} 9. h3 {[%emt 0:00:23]} Bf5 {[%emt 0:00:48]} 10. Be3 {[%emt 0:00:13]} h6 {[%emt 0:04:30]} 11. O-O {[%emt 0:01:39]} O-O {[%emt 0:01:13]} 12. a3 {[%emt 0:00:53]} a5 {[%emt 0:00:45]} 13. d5 {[%emt 0:02:17]} Nb8 {[%emt 0:03:57]} 14. b4 {[%emt 0:04:29]} N8d7 {[%emt 0:02:19]} 15. Nb5 {[%emt 0:06:49]} Nf6 {[%emt 0:08:45]} 16. Bf4 {[%emt 0:04:16]} Ne4 {[%emt 0:01:36]} 17. c5 {[%emt 0:04:06]} Nd7 {[%emt 0:01:47]} 18. c6 {[%emt 0:03:06]} bxc6 {[%emt 0:01:32]} 19. dxc6 {[%emt 0:00:04]} Nb6 {[%emt 0:00:52]} 20. Be3 {[%emt 0:07:30]} Nc8 {[%emt 0:01:51]} 21. Qe1 {[%emt 0:06:13]} axb4 {[%emt 0:18:58]} 22. axb4 {[%emt 0:00:12]} Rxa1 {[%emt 0:00:30]} 23. Qxa1 {[%emt 0:00:16]} Bf6 {[%emt 0:00:41]} 24. Nbd4 {[%emt 0:00:20]} Re8 {[%emt 0:02:04]} 25. Qa6 {[%emt 0:01:47]} Bg6 {[%emt 0:02:14]} 26. Nb3 {[%emt 0:04:55]} Ne7 {[%emt 0:05:18]} 27. b5 {[%emt 0:02:27]} Nd5 {[%emt 0:02:03]} 28. Bc4 {[%emt 0:04:28]} Nxe3 {[%emt 0:00:53]} 29. fxe3 {[%emt 0:00:16]} d5 {[%emt 0:00:38]} 30. Bd3 {[%emt 0:02:15]} Ng3 {[%emt 0:02:53]} 31. Rd1 {[%emt 0:00:08]} Re6 {[%emt 0:00:38]} 32. Bxg6 {[%emt 0:00:45]} Rxe3 {[%emt 0:00:12]} 33. Kf2 {[%emt 0:00:47]} fxg6 {[%emt 0:00:17]} 34. Kxg3 {[%emt 0:00:28]} Rxb3 {[%emt 0:00:28]} 35. Kf2 {[%emt 0:00:35]} Qd6 {[%emt 0:00:28]} 36. Kg1 {[%emt 0:01:59]} Rb2 {[%emt 0:00:52]} 37. Qc8+ {[%emt 0:00:28]} Kh7 {[%emt 0:01:10]} 38. Kh1 {[%emt 0:01:57]} h5 {[%emt 0:00:54]} 1/2-1/2

[Event "DVM U12 2024"]
[Site "Heidelberg"]
[Date "2024.12.29"]
[Round "5"]
[White "Heins, Simon"]
[Black "Vartanian, Roman"]
[Result "1/2-1/2"]
[ECO "B92"]
[WhiteElo "1708"]
[BlackElo "1853"]
[Annotator "NA RC"]
[PlyCount "78"]
[EventDate "2024.12.23"]
[EventType "team-tourn"]
[EventRounds "7"]
[EventCountry "GER"]
[SourceTitle "playchess.com"]
[Source "ChessBase"]
[SourceQuality "1"]
[TimeControl "40/5400+30:1800+30"]

1. e4 {[%emt 0:00:03]} c5 {[%emt 0:00:15]} 2. Nf3 {[%emt 0:00:06]} d6 {[%emt 0:00:05]} 3. d4 {[%emt 0:00:06]} cxd4 {[%emt 0:00:04]} 4. Nxd4 {[%emt 0:00:06]} Nf6 {[%emt 0:00:05]} 5. Nc3 {[%emt 0:00:14]} a6 {[%emt 0:00:08]} 6. f3 {[%emt 0:00:11]} e5 {[%emt 0:00:13]} 7. Nb3 {[%emt 0:00:12]} Be6 {[%emt 0:00:44]} 8. Be3 {[%emt 0:00:21]} Be7 {[%emt 0:00:35]} 9. Qd2 {[%emt 0:01:22]} Qc7 {[%emt 0:01:09]} 10. Be2 {[%emt 0:00:53]} Nbd7 {[%emt 0:00:45]} 11. O-O {[%emt 0:04:35]} O-O {[%emt 0:00:27]} 12. Rfd1 {[%emt 0:02:01]} b5 {[%emt 0:06:46]} 13. Kh1 {[%emt 0:15:40]} Rfc8 {[%emt 0:04:16]} 14. Rac1 {[%emt 0:01:47]} Nb6 {[%emt 0:05:05]} 15. Bxb6 {[%emt 0:03:02]} Qxb6 {[%emt 0:00:10]} 16. Nd5 {[%emt 0:00:56]} Bxd5 {[%emt 0:03:46]} 17. exd5 {[%emt 0:00:23]} a5 {[%emt 0:09:29]} 18. Qd3 {[%emt 0:13:12]} a4 {[%emt 0:12:43]} 19. Nd2 {[%emt 0:01:23]} Rc5 {[%emt 0:05:04]} 20. Ne4 {[%emt 0:01:28]} Nxe4 {[%emt 0:01:27]} 21. fxe4 {[%emt 0:00:15]} Bg5 {[%emt 0:01:41]} 22. Rb1 {[%emt 0:01:31]} Rac8 {[%emt 0:02:37]} 23. c3 {[%emt 0:01:24]} a3 {[%emt 0:02:16]} 24. Bg4 {[%emt 0:13:21]} R8c7 {[%emt 0:10:04]} 25. bxa3 {[%emt 0:09:51]} g6 {[%emt 0:03:54]} 26. a4 {[%emt 0:07:53]} Rxc3 {[%emt 0:07:25]} 27. Qxb5 {[%emt 0:00:09]} Qf2 {[%emt 0:00:48]} 28. Qe8+ {[%emt 0:00:36]} Kg7 {[%emt 0:00:12]} 29. Rb8 {[%emt 0:00:21]} Be7 {[%emt 0:05:47]} 30. Rbb1 {[%emt 0:05:07]} Qf4 {[%emt 0:04:15]} 31. Bd7 {[%emt 0:08:57]} Rc1 {[%emt 0:07:03]} 32. Bc6 {[%emt 0:00:46]} Rxb1 {[%emt 0:02:08]} 33. Rxb1 {[%emt 0:00:07]} Qxe4 {[%emt 0:00:06]} 34. Rf1 {[%emt 0:00:25]} Bg5 {[%emt 0:03:24]} 35. Qb8 {[%emt 0:06:20]} Re7 {[%emt 0:01:00]} 36. Qxd6 {[%emt 0:00:18]} Qd4 {[%emt 0:00:50]} 37. a5 {[%emt 0:01:51]} e4 {[%emt 0:00:35]} 38. Qg3 {[%emt 0:00:17]} Qc4 {[%emt 0:01:17]} 39. Rg1 {[%emt 0:00:54]} h6 {[%emt 0:00:49]} 1/2-1/2

[Event "DVM U12 2024"]
[Site "Heidelberg"]
[Date "2024.12.29"]
[Round "5"]
[White "Botvinnik, Julius"]
[Black "Menke, Raphael Wilhelm"]
[Result "1/2-1/2"]
[ECO "E24"]
[WhiteElo "1700"]
[BlackElo "1742"]
[Annotator "NA"]
[PlyCount "49"]
[EventDate "2024.12.23"]
[EventType "team-tourn"]
[EventRounds "7"]
[EventCountry "GER"]
[SourceTitle "playchess.com"]
[Source "ChessBase"]
[SourceQuality "1"]
[TimeControl "40/5400+30:1800+30"]

1. d4 {[%emt 0:00:03]} d5 {[%emt 0:00:05]} 2. c4 {[%emt 0:00:07]} e6 {[%emt 0:00:03]} 3. Nc3 {[%emt 0:00:08]} Bb4 {[%emt 0:00:05]} 4. a3 {[%emt 0:00:10]} Bxc3+ {[%emt 0:00:07]} 5. bxc3 {[%emt 0:00:07]} Nf6 {[%emt 0:00:05]} 6. Bg5 {[%emt 0:00:48]} Nbd7 {[%emt 0:00:12]} 7. cxd5 {[%emt 0:00:34]} exd5 {[%emt 0:00:16]} 8. e3 {[%emt 0:00:55]} O-O {[%emt 0:01:29]} 9. Bd3 {[%emt 0:04:01]} c5 {[%emt 0:00:31]} 10. Nf3 {[%emt 0:02:19]} b6 {[%emt 0:03:50]} 11. O-O {[%emt 0:04:56]} Bb7 {[%emt 0:03:08]} 12. Ne5 {[%emt 0:05:44]} Qc7 {[%emt 0:04:45]} 13. Nxd7 {[%emt 0:06:21]} Nxd7 {[%emt 0:03:40]} 14. Qg4 {[%emt 0:03:27]} g6 {[%emt 0:03:04]} 15. h4 {[%emt 0:11:11]} h5 {[%emt 0:04:29]} 16. Qh3 {[%emt 0:02:44]} Kg7 {[%emt 0:00:29]} 17. Bf4 {[%emt 0:00:54]} Qc6 {[%emt 0:01:55]} 18. Qg3 {[%emt 0:01:26]} Rh8 {[%emt 0:01:09]} 19. Bf5 {[%emt 0:03:52]} Bc8 {[%emt 0:03:30]} 20. Bc2 {[%emt 0:08:32]} Ba6 {[%emt 0:03:04]} 21. Rfe1 {[%emt 0:00:42]} Rae8 {[%emt 0:00:26]} 22. Bd1 {[%emt 0:02:24]} Bd3 {[%emt 0:03:34]} 23. Bf3 {[%emt 0:00:29]} Be4 {[%emt 0:00:40]} 24. Bxe4 {[%emt 0:00:40]} Rxe4 {[%emt 0:00:10]} 25. Rec1 {[%emt 0:03:03]} 1/2-1/2

[Event "DVM U12 2024"]
[Site "Heidelberg"]
[Date "2024.12.29"]
[Round "5"]
[White "Schmidt, Jossip"]
[Black "Lu, Alexander"]
[Result "1-0"]
[ECO "B13"]
[WhiteElo "1687"]
[BlackElo "1571"]
[Annotator "NA"]
[PlyCount "65"]
[EventDate "2024.12.23"]
[EventType "team-tourn"]
[EventRounds "7"]
[EventCountry "GER"]
[SourceTitle "playchess.com"]
[Source "ChessBase"]
[SourceQuality "1"]
[TimeControl "40/5400+30:1800+30"]

1. e4 {[%emt 0:00:02]} c6 {[%emt 0:00:02]} 2. d4 {[%emt 0:00:04]} d5 {[%emt 0:00:04]} 3. exd5 {[%emt 0:00:05]} cxd5 {[%emt 0:00:06]} 4. Bd3 {[%emt 0:01:50]} Nc6 {[%emt 0:00:09]} 5. c3 {[%emt 0:01:01]} Nf6 {[%emt 0:00:19]} 6. Bf4 {[%emt 0:00:29]} e6 {[%emt 0:00:50]} 7. Nf3 {[%emt 0:01:11]} Bd6 {[%emt 0:00:32]} 8. Bxd6 {[%emt 0:00:52]} Qxd6 {[%emt 0:00:10]} 9. O-O {[%emt 0:00:46]} O-O {[%emt 0:00:29]} 10. Qe1 {[%emt 0:01:09]} Rb8 {[%emt 0:01:38]} 11. Ne5 {[%emt 0:01:03]} b5 {[%emt 0:00:52]} 12. a3 {[%emt 0:01:03]} a5 {[%emt 0:00:51]} 13. f4 {[%emt 0:00:37]} b4 {[%emt 0:04:23]} 14. axb4 {[%emt 0:01:19]} axb4 {[%emt 0:00:16]} 15. Qh4 {[%emt 0:00:20]} bxc3 {[%emt 0:01:54]} 16. bxc3 {[%emt 0:00:33]} Ne7 {[%emt 0:03:23]} 17. Rf3 {[%emt 0:00:55]} Ng6 {[%emt 0:00:16]} 18. Bxg6 {[%emt 0:00:57]} fxg6 {[%emt 0:00:27]} 19. Rh3 {[%emt 0:00:49]} Nh5 {[%emt 0:02:03]} 20. g4 {[%emt 0:06:23]} Rxf4 {[%emt 0:08:00]} 21. Qg5 {[%emt 0:00:51]} Ba6 {[%emt 0:01:04]} 22. Nd2 {[%emt 0:03:13]} Rbf8 {[%emt 0:05:15]} 23. gxh5 {[%emt 0:02:26]} R8f5 {[%emt 0:02:05]} 24. Qg2 {[%emt 0:01:44]} Qb6 {[%emt 0:05:25]} 25. hxg6 {[%emt 0:03:18]} Rxe5 {[%emt 0:00:37]} 26. gxh7+ {[%emt 0:00:27]} Kf7 {[%emt 0:02:00]} 27. Qxg7+ {[%emt 0:00:11]} Kxg7 {[%emt 0:00:02]} 28. h8=Q+ {[%emt 0:00:10]} Kf7 {[%emt 0:00:00]} 29. Rh7+ {[%emt 0:00:15]} Kg6 {[%emt 0:00:12]} 30. Qg7+ {[%emt 0:00:15]} Kf5 {[%emt 0:00:04]} 31. Qxe5+ {[%emt 0:00:04]} Kg6 {[%emt 0:00:17]} 32. Rg7+ {[%emt 0:00:10]} Kh6 {[%emt 0:00:09]} 33. Qg5# {[%emt 0:00:03]} 1-0

[Event "DVM U12 2024"]
[Site "Heidelberg"]
[Date "2024.12.29"]
[Round "5"]
[White "Tu, Tiffany"]
[Black "Leonhardt, Max"]
[Result "1-0"]
[ECO "B40"]
[WhiteElo "1670"]
[BlackElo "1735"]
[Annotator "NA"]
[PlyCount "86"]
[EventDate "2024.12.23"]
[EventType "team-tourn"]
[EventRounds "7"]
[EventCountry "GER"]
[SourceTitle "playchess.com"]
[Source "ChessBase"]
[SourceQuality "1"]
[TimeControl "40/5400+30:1800+30"]

1. e4 {[%emt 0:00:06]} e6 {[%emt 0:00:05]} 2. Nf3 {[%emt 0:00:11]} d5 {[%emt 0:00:08]} 3. e5 {[%emt 0:00:10]} c5 {[%emt 0:00:07]} 4. c3 {[%emt 0:00:05]} Nc6 {[%emt 0:00:07]} 5. Na3 {[%emt 0:00:07]} a6 {[%emt 0:00:29]} 6. Nc2 {[%emt 0:00:08]} Nge7 {[%emt 0:01:11]} 7. d4 {[%emt 0:00:17]} Nf5 {[%emt 0:00:34]} 8. Bd3 {[%emt 0:00:13]} g6 {[%emt 0:01:00]} 9. O-O {[%emt 0:00:31]} c4 {[%emt 0:00:53]} 10. Be2 {[%emt 0:02:10]} Be7 {[%emt 0:00:35]} 11. Ne3 {[%emt 0:01:57]} Bd7 {[%emt 0:04:48]} 12. Qc2 {[%emt 0:02:24]} h5 {[%emt 0:06:53]} 13. b3 {[%emt 0:10:34]} b5 {[%emt 0:00:22]} 14. Nxf5 {[%emt 0:09:47]} gxf5 {[%emt 0:00:33]} 15. Bf4 {[%emt 0:02:03]} Rc8 {[%emt 0:05:16]} 16. Qd2 {[%emt 0:03:37]} Rg8 {[%emt 0:04:35]} 17. Kh1 {[%emt 0:01:14]} Na5 {[%emt 0:00:47]} 18. b4 {[%emt 0:01:00]} Nc6 {[%emt 0:00:44]} 19. Rg1 {[%emt 0:02:04]} a5 {[%emt 0:02:01]} 20. a3 {[%emt 0:01:04]} Ra8 {[%emt 0:00:32]} 21. h3 {[%emt 0:01:15]} axb4 {[%emt 0:01:34]} 22. axb4 {[%emt 0:00:32]} Ra4 {[%emt 0:01:02]} 23. Rxa4 {[%emt 0:01:39]} bxa4 {[%emt 0:00:08]} 24. Ra1 {[%emt 0:00:21]} Qa8 {[%emt 0:02:25]} 25. Qa2 {[%emt 0:00:36]} Na7 {[%emt 0:01:57]} 26. Bd1 {[%emt 0:00:31]} Nb5 {[%emt 0:00:29]} 27. Bd2 {[%emt 0:00:58]} a3 {[%emt 0:00:32]} 28. Ne1 {[%emt 0:01:02]} f6 {[%emt 0:02:28]} 29. Bxh5+ {[%emt 0:00:36]} Kd8 {[%emt 0:00:17]} 30. f4 {[%emt 0:09:33]} Rg3 {[%emt 0:03:56]} 31. Kh2 {[%emt 0:01:13]} Rg8 {[%emt 0:01:04]} 32. Nc2 {[%emt 0:02:02]} fxe5 {[%emt 0:02:26]} 33. dxe5 {[%emt 0:02:00]} d4 {[%emt 0:00:40]} 34. Bf3 {[%emt 0:00:42]} Bc6 {[%emt 0:00:17]} 35. Rf1 {[%emt 0:04:39]} Bh4 {[%emt 0:03:39]} 36. Nxd4 {[%emt 0:02:14]} Nxd4 {[%emt 0:00:28]} 37. cxd4 {[%emt 0:00:19]} Rxg2+ {[%emt 0:00:17]} 38. Kxg2 {[%emt 0:05:37]} Qb7 {[%emt 0:02:55]} 39. Bxc6 {[%emt 0:03:04]} Qg7+ {[%emt 0:00:32]} 40. Kh1 {[%emt 0:00:42]} Qg3 {[%emt 0:00:39]} 41. Bg2 {[%emt 0:30:31]} Qb3 {[%emt 0:30:38]} 42. Qxb3 {[%emt 0:02:48]} cxb3 {[%emt 0:00:06]} 43. Bc3 {[%emt 0:00:08]} b2 {[%emt 0:00:09]} 1-0

[Event "DVM U12 2024"]
[Site "Heidelberg"]
[Date "2024.12.29"]
[Round "5"]
[White "Thoms, Eric"]
[Black "Mi Plaza, Luis Leo Manuel"]
[Result "1-0"]
[ECO "D02"]
[WhiteElo "1666"]
[BlackElo "1702"]
[Annotator "NA"]
[PlyCount "121"]
[EventDate "2024.12.23"]
[EventType "team-tourn"]
[EventRounds "7"]
[EventCountry "GER"]
[SourceTitle "playchess.com"]
[Source "ChessBase"]
[SourceQuality "1"]
[TimeControl "40/5400+30:1800+30"]

1. d4 {[%emt 0:00:03]} Nf6 {[%emt 0:00:16]} 2. g3 {[%emt 0:00:08]} d5 {[%emt 0:00:30]} 3. Bg2 {[%emt 0:00:09]} e6 {[%emt 0:00:46]} 4. Nf3 {[%emt 0:00:20]} c5 {[%emt 0:01:17]} 5. c3 {[%emt 0:01:27]} Nc6 {[%emt 0:01:24]} 6. O-O {[%emt 0:01:18]} Be7 {[%emt 0:02:02]} 7. Nbd2 {[%emt 0:04:03]} O-O {[%emt 0:02:19]} 8. dxc5 {[%emt 0:02:12]} Bxc5 {[%emt 0:00:36]} 9. b4 {[%emt 0:01:02]} Bb6 {[%emt 0:01:32]} 10. a3 {[%emt 0:07:24]} Bd7 {[%emt 0:04:29]} 11. c4 {[%emt 0:01:36]} Rc8 {[%emt 0:04:16]} 12. c5 {[%emt 0:01:08]} Bc7 {[%emt 0:00:24]} 13. Bb2 {[%emt 0:00:15]} a6 {[%emt 0:01:40]} 14. Qc2 {[%emt 0:05:20]} h6 {[%emt 0:05:59]} 15. Rfd1 {[%emt 0:03:33]} b6 {[%emt 0:03:06]} 16. Nb3 {[%emt 0:01:30]} Re8 {[%emt 0:06:33]} 17. Rac1 {[%emt 0:02:31]} e5 {[%emt 0:01:53]} 18. Nfd2 {[%emt 0:07:34]} d4 {[%emt 0:02:11]} 19. cxb6 {[%emt 0:01:23]} Bxb6 {[%emt 0:00:38]} 20. Nc5 {[%emt 0:00:10]} Bxc5 {[%emt 0:04:26]} 21. Qxc5 {[%emt 0:00:40]} Qe7 {[%emt 0:01:55]} 22. Ne4 {[%emt 0:02:47]} Nxe4 {[%emt 0:02:10]} 23. Bxe4 {[%emt 0:00:13]} Qxc5 {[%emt 0:01:25]} 24. Rxc5 {[%emt 0:00:15]} f6 {[%emt 0:01:42]} 25. e3 {[%emt 0:03:14]} Re7 {[%emt 0:05:34]} 26. exd4 {[%emt 0:02:51]} exd4 {[%emt 0:03:28]} 27. Bd5+ {[%emt 0:02:39]} Kf8 {[%emt 0:00:35]} 28. Bxd4 {[%emt 0:03:28]} Nxd4 {[%emt 0:01:31]} 29. Rxc8+ {[%emt 0:02:11]} Bxc8 {[%emt 0:00:19]} 30. Rxd4 {[%emt 0:00:11]} Bh3 {[%emt 0:01:13]} 31. Rd1 {[%emt 0:01:17]} Rd7 {[%emt 0:02:01]} 32. Bf3 {[%emt 0:00:22]} Rxd1+ {[%emt 0:00:54]} 33. Bxd1 {[%emt 0:00:11]} Be6 {[%emt 0:00:27]} 34. Be2 {[%emt 0:00:12]} Bc8 {[%emt 0:00:42]} 35. f4 {[%emt 0:00:41]} Ke7 {[%emt 0:00:18]} 36. Kf2 {[%emt 0:00:10]} Kd6 {[%emt 0:00:36]} 37. Ke3 {[%emt 0:00:12]} Kd5 {[%emt 0:01:28]} 38. Kd3 {[%emt 0:04:52]} Bf5+ {[%emt 0:01:09]} 39. Kc3 {[%emt 0:00:10]} Bc8 {[%emt 0:00:26]} 40. Bf3+ {[%emt 0:00:12]} Kd6 {[%emt 0:00:51]} 41. Kd4 {[%emt 0:30:15]} Be6 {[%emt 0:31:13]} 42. Bb7 {[%emt 0:00:36]} Kc7 {[%emt 0:00:36]} 43. Bxa6 {[%emt 0:00:09]} Kb6 {[%emt 0:00:29]} 44. Bc4 {[%emt 0:00:24]} Bd7 {[%emt 0:02:20]} 45. Kd5 {[%emt 0:00:21]} Kc7 {[%emt 0:00:44]} 46. Kc5 {[%emt 0:00:16]} Bc6 {[%emt 0:01:03]} 47. b5 {[%emt 0:00:16]} Bb7 {[%emt 0:00:44]} 48. b6+ {[%emt 0:00:10]} Kd7 {[%emt 0:00:48]} 49. a4 {[%emt 0:00:11]} Ke7 {[%emt 0:00:20]} 50. a5 {[%emt 0:00:11]} Kd7 {[%emt 0:00:12]} 51. a6 {[%emt 0:00:09]} Bc6 {[%emt 0:00:45]} 52. Bb5 {[%emt 0:00:20]} Bxb5 {[%emt 0:00:16]} 53. Kxb5 {[%emt 0:00:07]} Kc8 {[%emt 0:00:16]} 54. b7+ {[%emt 0:00:08]} Kc7 {[%emt 0:00:48]} 55. f5 {[%emt 0:00:09]} h5 {[%emt 0:00:14]} 56. h4 {[%emt 0:00:08]} g5 {[%emt 0:00:25]} 57. fxg6 {[%emt 0:00:08]} f5 {[%emt 0:00:17]} 58. g7 {[%emt 0:00:07]} f4 {[%emt 0:00:14]} 59. g8=Q {[%emt 0:00:12]} fxg3 {[%emt 0:00:10]} 60. b8=Q+ {[%emt 0:00:17]} Kd7 {[%emt 0:00:13]} 61. Qge8# {[%emt 0:03:59]} 1-0

[Event "DVM U12 2024"]
[Site "Heidelberg"]
[Date "2024.12.29"]
[Round "5"]
[White "Heidtkamp, Anna"]
[Black "Serwane, Ruben"]
[Result "0-1"]
[ECO "C54"]
[WhiteElo "1663"]
[BlackElo "1799"]
[Annotator "NA"]
[PlyCount "66"]
[EventDate "2024.12.23"]
[EventType "team-tourn"]
[EventRounds "7"]
[EventCountry "GER"]
[SourceTitle "playchess.com"]
[Source "ChessBase"]
[SourceQuality "1"]
[TimeControl "40/5400+30:1800+30"]

1. e4 {[%emt 0:00:02]} e5 {[%emt 0:00:08]} 2. Nf3 {[%emt 0:00:04]} Nc6 {[%emt 0:00:14]} 3. Bc4 {[%emt 0:00:08]} Bc5 {[%emt 0:00:19]} 4. c3 {[%emt 0:00:03]} Nf6 {[%emt 0:00:29]} 5. d3 {[%emt 0:00:08]} a6 {[%emt 0:00:43]} 6. Bb3 {[%emt 0:00:07]} d6 {[%emt 0:00:54]} 7. O-O {[%emt 0:00:47]} Bg4 {[%emt 0:00:20]} 8. Be3 {[%emt 0:00:27]} Qd7 {[%emt 0:01:08]} 9. Ba4 {[%emt 0:00:47]} b5 {[%emt 0:00:57]} 10. Bb3 {[%emt 0:00:26]} O-O {[%emt 0:00:52]} 11. Re1 {[%emt 0:00:57]} Kh8 {[%emt 0:01:10]} 12. Nbd2 {[%emt 0:01:40]} Ne8 {[%emt 0:03:21]} 13. Qb1 {[%emt 0:23:17]} Bxe3 {[%emt 0:04:52]} 14. fxe3 {[%emt 0:09:16]} f5 {[%emt 0:03:47]} 15. d4 {[%emt 0:01:17]} Nf6 {[%emt 0:04:32]} 16. exf5 {[%emt 0:03:57]} Bxf5 {[%emt 0:04:38]} 17. e4 {[%emt 0:00:24]} Bg6 {[%emt 0:01:39]} 18. Qd1 {[%emt 0:12:52]} Rae8 {[%emt 0:03:00]} 19. d5 {[%emt 0:01:47]} Nd8 {[%emt 0:01:38]} 20. h3 {[%emt 0:02:20]} Nh5 {[%emt 0:02:29]} 21. Nf1 {[%emt 0:04:15]} Nb7 {[%emt 0:03:13]} 22. Bc2 {[%emt 0:01:50]} Nf4 {[%emt 0:01:45]} 23. N1h2 {[%emt 0:04:01]} Bh5 {[%emt 0:01:33]} 24. a4 {[%emt 0:03:24]} Rf6 {[%emt 0:07:04]} 25. Bd3 {[%emt 0:04:23]} Ref8 {[%emt 0:02:11]} 26. h4 {[%emt 0:15:25]} Nxg2 {[%emt 0:02:17]} 27. Kxg2 {[%emt 0:00:28]} Bxf3+ {[%emt 0:00:09]} 28. Nxf3 {[%emt 0:00:12]} Qg4+ {[%emt 0:00:08]} 29. Kh1 {[%emt 0:03:51]} Rxf3 {[%emt 0:00:54]} 30. Re2 {[%emt 0:02:04]} Rh3+ {[%emt 0:00:39]} 31. Rh2 {[%emt 0:00:08]} Rxh2+ {[%emt 0:00:06]} 32. Kxh2 {[%emt 0:00:04]} Rf2+ {[%emt 0:00:09]} 33. Kh1 {[%emt 0:00:24]} Qg2# {[%emt 0:00:07]} 0-1